Cogmind - Beta 16.1 @@@ ROGUE MODE // 2026.04.23 @ 17:52:52 Player: Tibo Result: Destroyed by S-10 Pest with Light Assault Rifle Performance ------------- Evolutions (0) 0 Regions Visited (2) 400 Robots Destroyed (10) 50 Value Destroyed (85) 85 Prototype IDs (0) 0 Alien Tech Used (0) 0 Bonus (0) 0 TOTAL SCORE: 535 Bonus ------- None Cogmind --------- Core Integrity 0/250 Matter 199/300 Energy 100/100 System Corruption 0% Temperature Cool (0) Movement Core (50) Location -10/Mines Parts ------- > --- POWER (1) -------- (None) > --- PROPULSION (2) --- (None) > --- UTILITY (2) ------ (None) > --- WEAPON (2) ------- (None) > --- INVENTORY (5) ---- Light Ion Engine Light Ion Engine Seismic Detector Medium Laser Stasis Trap (100%) Peak State ------------ > --- POWER ------------ Light Ion Engine > --- PROPULSION ------- Aluminum Leg Aluminum Leg > --- UTILITY ---------- Small Storage Unit Improved Terrain Scanner > --- WEAPON ----------- EM Pulse Gun Grenade Launcher > --- INVENTORY -------- Light Ion Engine Light Ion Engine Wheel Wheel Seismic Detector Medium Laser Small Laser Mining Laser [Rating: 9] Favorites ----------- Power Light Ion Engine Engine Light Ion Engine Propulsion Aluminum Leg Leg Aluminum Leg Utility Small Storage Unit Device Seismic Detector Storage Small Storage Unit Weapon EM Pulse Gun Energy Gun EM Pulse Gun Ballistic Gun Light Assault Rifle Launcher Grenade Launcher Build | -11 -10 -10 ------- Run | Yrd Mat Min Slots Evolved . | . . . Power . | . . . Propulsion . | . . . Utility . | . . . Weapon . | . . . Parts Attached 10 | 7 1 2 Power 1 | 1 . . Engine 1 | 1 . . Core . | . . . Reactor . | . . . Propulsion 2 | 2 . . Treads . | . . . Leg 2 | 2 . . Wheel . | . . . Hover . | . . . Flight . | . . . Utility 3 | 2 . 1 Device 2 | 1 . 1 Storage 1 | 1 . . Processor . | . . . Hackware . | . . . Protection . | . . . Artifact . | . . . Weapon 4 | 2 1 1 Energy Gun 2 | 2 . . Energy Cannon . | . . . Ballistic Gun 1 | . . 1 Ballistic Cannon . | . . . Launcher 1 | . 1 . Special Weapon . | . . . Impact Weapon . | . . . Slashing Weapon . | . . . Piercing Weapon . | . . . Special Melee Weapon . | . . . Unidentified Prototypes . | . . . Parts Lost 6 | . . 6 Power 1 | . . 1 Propulsion 2 | . . 2 Utility 1 | . . 1 Weapon 2 | . . 2 Highest Loss Streak 5 | . . 5 To Critical Strikes . | . . . Average Backups 6 | 2 8 7 Power 1 | 1 2 2 Propulsion 1 | . 2 2 Utility . | . 1 1 Weapon 1 | . 1 2 Tool/Special . | . . . Unused Backups 6 | . . 6 Power 2 | . . 2 Propulsion 2 | . . 2 Utility . | . . . Weapon 2 | . . 2 Tool/Special . | . . . Average Slot Usage (%) 91 | . 100 86 Engine 13 | . 14 12 Leg 25 | . 28 24 Device 10 | . 14 8 Storage 14 | . 14 14 Energy Gun 11 | . 17 8 Ballistic Gun 2 | . . 4 Launcher 11 | . 11 12 Peak Build Rating 9 | 8 8 9 Average Rating 6 | 5 7 6 On Entrance 5 | . 8 8 Avg Prop Armor Cover (%) . | . . . Naked Turns 3 | . . 3 Heaviest Build 14 | 13 14 14 Greatest Support 20 | 20 20 20 Greatest Overweight (x) 2 | 1 . 2 Average Overweight (x) . | . . . Largest Inventory Capacity 8 | 8 8 8 Average Capacity 7 | 7 8 7 Most Carried 8 | 8 8 8 Average Carried 6 | 2 7 7 Final Capacity 8 | 8 8 5 Final Carried 8 | 8 8 5 Class Distribution -------------------- 100% | Mutant Dominant Class ---------------- Mutant | -10/Materials Mutant | -10/Mines Resources | -11 -10 -10 ----------- Run | Yrd Mat Min Matter Collected 242 | 239 . 3 Remotely . | . . . Salvage Created 210 | 180 8 22 Parts 19 | 14 . 5 Haulers Intercepted . | . . . Recyclers Shooed . | . . . Parts Field Recycled . | . . . Retrieved Matter . | . . . Parts Self-Destructed . | . . . Prevented . | . . . Parts Restored . | . . . Kills | -11 -10 -10 ------- Run | Yrd Mat Min Combat Hostiles Destroyed 7 | . . 7 Guns 1 | . . 1 AOE 6 | . . 6 Classes Destroyed 6 | 3 1 2 Worker 2 | 2 . . Tunneler 3 | 3 . . Recycler 1 | 1 . . Watcher 1 | . 1 . Swarmer 3 | . . 3 Assembled 4 | . . 4 Best Kill Streak 4 | 3 1 4 Combat Bots Only 4 | . . 4 Max Kills in Single Turn 2 | 1 1 2 Gunslinging . | . . . Exploded 2 | . . 2 Melee . | . . . Uniques/NPCs Destroyed . | . . . Combat | -11 -10 -10 -------- Run | Yrd Mat Min Hostile Shots Fired 29 | . . 29 Missed 12 | . . 12 Hits 17 | . . 17 Projectile 17 | . . 17 AOE 15 | . . 15 Damage Taken 634 | . . 634 Core 255 | . . 255 Absorbed by Shields . | . . . Core Remaining (%) 100 | 100 . . Volleys Fired 37 | 29 3 5 Largest 2 | 2 2 2 Hottest 90 | 90 90 70 Shots Fired 48 | 32 6 10 Gun 41 | 32 4 5 Cannon . | . . . Launcher 7 | . 2 5 Special . | . . . Kinetic 3 | . . 3 Thermal 30 | 29 1 . Explosive 7 | . 2 5 Electromagnetic 8 | 3 3 2 Robot Hit Streak 5 | 5 4 2 Robot Miss Streak 3 | 3 1 2 Penetration Max . | . . . Secondary Targets . | . . . Shots Hit Robots 27 | 18 4 5 Core Hits 18 | 7 1 10 Critical Kills . | . . . Critical Parts Destroyed . | . . . Critical Strikes 1 | 1 . . Burn 1 | 1 . . Melee Attacks . | . . . Impact . | . . . Slashing . | . . . Piercing . | . . . Sneak Attacks . | . . . Combat Hostiles . | . . . Follow-up Attacks . | . . . Damage Inflicted 748 | 221 100 427 Guns 290 | 221 52 17 Cannons . | . . . Explosions 458 | . 48 410 Melee . | . . . Ramming . | . . . Kinetic 6 | . . 6 Thermal 221 | 209 12 . Explosive 458 | . 48 410 Electromagnetic 63 | 12 40 11 Impact . | . . . Slashing . | . . . Piercing . | . . . Highest Corruption . | . . . Average Corruption . | . . . Corruption Purged . | . . . Corruption Blocked . | . . . Overload Shots . | . . . Overflow Damage 49 | . 3 46 Projectiles . | . . . Explosions 49 | . 3 46 Melee . | . . . Knockbacks . | . . . Impact . | . . . Kinetic . | . . . Secondary . | . . . Self-Inflicted Damage 32 | . . 32 Shots 1 | . . 1 Rammed . | . . . Targets Rammed . | . . . Kicked . | . . . Crushed . | . . . Highest Temperature 120 | 120 30 20 Average Temperature 32 | 39 10 10 Received Heat Transfer . | . . . Siege Activations . | . . . Martial Activations . | . . . Shielding Activations . | . . . Robots Disrupted . | . . . Combat Hostiles . | . . . Robots Corrupted . | . . . Combat Hostiles . | . . . Parts Fried . | . . . Impact Corruptions . | . . . Robots Melted . | . . . Combat Hostiles . | . . . Parts Melted . | . . . Heat Transferred 740 | 703 37 . Parts Sabotaged . | . . . Parts Stolen . | . . . Parts Stripped . | . . . Power Chain Reactions . | . . . Alert | -11 -10 -10 ------- Run | Yrd Mat Min Maximum Alert Level . | . . . Low Security (%) 100 | 100 100 100 Level 1 . | . . . Level 2 . | . . . Level 3 . | . . . Level 4 . | . . . Level 5 . | . . . High Security . | . . . Max Security . | . . . Peak Influence 100 | 10 18 100 Initial . | . . . Average 15 | 1 3 30 Influence Increases 176 | 30 18 128 Destroy 0b10 Robot/C 60 | . . 60 Destroy 0b10 Robot/NC 35 | 30 5 . Destroy Leader 12 | . 2 10 Successful Hack 8 | . . 8 Disable Machine 15 | . . 15 Destroy Structure 46 | . 11 35 Influence Decreases 158 | 30 18 110 Time Decay 98 | 30 18 50 Lost Part 60 | . . 60 Squads Dispatched 1 | . 1 . Investigation 1 | . 1 . Extermination . | . . . Reinforcement . | . . . Assault . | . . . Garrison . | . . . Intercept . | . . . Searches Triggered . | . . . Construction Impeded . | . . . Haulers Reinforced . | . . . Active Scanning Responses . | . . . Cargo Convoy Interrupts . | . . . Stealth | -11 -10 -10 --------- Run | Yrd Mat Min Distress Signals . | . . . Communications Jammed . | . . . Distress Signals . | . . . Times Spotted 28 | . 2 26 Peak Tracking Total 12 | . 1 12 Tactical Retreats . | . . . Traps | -11 -10 -10 ------- Run | Yrd Mat Min Traps Triggered 1 | . 1 . Indirectly . | . . . Trap Hack Attempts . | . . . Triggered . | . . . Disarmed . | . . . Reprogrammed . | . . . Reused . | . . . Traps Extracted . | . . . Installed . | . . . Triggered . | . . . Most Traps Carried 1 | . . 1 Machines | -11 -10 -10 ---------- Run | Yrd Mat Min Machines Disabled 1 | . . 1 Max in Single Turn 1 | . . 1 Machines Repaired . | . . . Machines Dismantled . | . . . Machines Sabotaged . | . . . Overloaded Fab Kills . | . . . Hacking | -11 -10 -10 --------- Run | Yrd Mat Min Machines Accessed 3 | . 2 1 Terminals 3 | . 2 1 Fabricators . | . . . Repair Stations . | . . . Recycling Units . | . . . Scanalyzers . | . . . Garrison Access . | . . . Total Hacks 8 | . 5 3 Successful 2 | . 1 1 Failed 6 | . 4 2 Catastrophic 2 | . . 2 Database Lockouts . | . . . Manual 5 | . 2 3 Terminals 8 | . 5 3 Fabricators . | . . . Repair Stations . | . . . Recycling Units . | . . . Scanalyzers . | . . . Garrison Access . | . . . Terminal Hacks 2 | . 1 1 Branch Access Points 2 | . 1 1 Fabricator Hacks . | . . . Repair Station Hacks . | . . . Recycling Unit Hacks . | . . . Scanalyzer . | . . . Garrison Access Hacks . | . . . Unauthorized Hacks . | . . . Terminals . | . . . Fabricators . | . . . Repair Stations . | . . . Recycling Units . | . . . Scanalyzers . | . . . Garrison Access . | . . . Data Cores Recovered . | . . . Used . | . . . Hacking Detections 2 | . 1 1 Full Trace Events . | . . . Feedback Events . | . . . Feedback Blocked . | . . . Robot Schematics Acquired . | . . . Robots Built . | . . . Authchips . | . . . Time . | . . . Total Robot Build Rating . | . . . Part Schematics Acquired . | . . . Parts Built . | . . . Authchips . | . . . Time . | . . . Total Part Build Rating . | . . . Part Studies Acquired . | . . . Parts Repaired . | . . . Time . | . . . Parts Recycled . | . . . Recycled Matter . | . . . Retrieved Matter . | . . . Retrieved Components . | . . . Parts Scanalyzed . | . . . Part Schematics Acquired . | . . . Parts Damaged . | . . . Bothacking | -11 -10 -10 ------------ Run | Yrd Mat Min Used RIF Installer . | . . . Robots Hacked . | . . . Non-combat . | . . . Combat . | . . . Robot Hacks Applied . | . . . Relay Couplers Released . | . . . Fabnet Peak Effective % . | . . . Robots Rewired . | . . . Allies Hacked . | . . . Hacks Repelled . | . . . Allies | -11 -10 -10 -------- Run | Yrd Mat Min Total Allies . | . . . Largest Group . | . . . Highest-Rated Group . | . . . Highest-Rated Ally . | . . . Total Orders . | . . . Ally Attacks . | . . . Total Damage . | . . . Kills . | . . . Allies Corrupted . | . . . Allies Melted . | . . . Intel | -11 -10 -10 ------- Run | Yrd Mat Min Active Infowar (turns) 303 | 29 129 145 Terrain 83 | . . 83 Seismic 220 | 29 129 62 Robot Analysis Total . | . . . Derelict Logs Recovered 1 | . . 1 Drone Launches . | . . . Drone Recoveries . | . . . Exploration | -11 -10 -10 ------------- Run | Yrd Mat Min Turns Passed 564 | 180 129 255 Spaces Moved 368 | 86 97 185 Core 31 | 3 . 28 Treads . | . . . Legs 337 | 83 97 157 Wheels . | . . . Hover . | . . . Flight . | . . . Fastest Speed 50 | 50 120 50 Average Speed 117 | 118 120 116 Slowest Speed 150 | 120 120 150 Overloaded Moves . | . . . Propulsion Burnouts . | . . . Robots Hopped . | . . . Potential Cave-ins . | . . . Cave-ins Triggered . | . . . Exploration Rate (%) 21 | 4 23 37 Regions Visited 2 Branch Regions 1 Pre-discovered Areas . | . . . Known Exits Taken 1 | . 1 . Unknown Exits Taken 1 | 1 . . Scrap Searched . | . . . Spaces Dug . | . . . Terrain Destroyed 57 | . 10 47 Melee . | . . . Projectile . | . . . AOE 57 | . 10 47 Terrain Rammed . | . . . Walls Destroyed . | . . . Machines Disabled . | . . . Actions | -11 -10 -10 --------- Run | Yrd Mat Min Total 448 | 129 104 215 Wait 20 | . . 20 Move 366 | 85 96 185 Hop . | . . . Pick Up 11 | 8 2 1 Fast Attach 7 | 7 . . Attach . | . . . Detach . | . . . Swap 3 | . 1 2 Drop 4 | . 2 2 Fire 37 | 29 3 5 Melee . | . . . Ram . | . . . Kick . | . . . Crush . | . . . Escape Stasis . | . . . Rewire . | . . . Trap . | . . . Miscellaneous . | . . . Route ------- -11/Scrapyard -10/Materials -10/Mines History --------- Turn | Location | Event 10 | -11/Scrapyard | Discovered new exit (range 16) 181 | -11/Scrapyard | Entered Materials 261 | -10/Materials | Discovered new exit (range 16) 288 | -10/Materials | Identified exit to Mines 310 | -10/Materials | Entered Mines 322 | -10/Mines | Build established: Mutant 327 | -10/Mines | Learned location of 1 exit from Materials 333 | -10/Mines | Found a hidden stash of uninstalled traps 473 | -10/Mines | Assembled infested the area 478 | -10/Mines | Assisted by a Guerilla fighting off Assembled 537 | -10/Mines | Core integrity fell below 50% 549 | -10/Mines | Core integrity fell below 20% 565 | -10/Mines | Destroyed by S-10 Pest with Light Assault Rifle Last Messages --------------- 00504_ as-02159 destroyed. 00505_ JD-3RY(h) destroyed. 00506_ K-01 Serf collects debris. 00506_ as-61539 destroyed. 00506_ as-02911 destroyed. 00506_ as-49641 destroyed. 00511_ as-31385 destroyed. 00529_ Matter Pump disabled. 00529_ R-06 Scavenger destroyed. 00533_ K-01 Serf collects debris. 00533_ Grenade Launcher destroyed. 00536_ Aluminum Leg destroyed. 00538_ K-01 Serf collects debris. 00538_ U-05 Engineer lays Concrete. 00540_ Lgt. Ion Engine destroyed. 00541_ U-05 Engineer lays Concrete. 00543_ T-07 Excavator destroyed. 00543_ Acquired 3 matter. 00548_ Lgt. Assault Rifle destroyed. 00562_ Dropped Sml. Storage Unit. Map ----- +----------------------------------------------------+ | | | | | | | | | ?????????????????????????????????????????????????? | | ?????????????????????????????????????????????????? | | ?????????????????????????????????????????????????? | | ???#?????????????????????????????????????????????? | | ?????????????????????????????????????????????????? | | ?????????????????????????????????????????????????? | | ?????????????????????????????????????????????????? | | ?????????????????????????????????????????????????? | | ?????????????????????????????????????????????????? | | ?? ??????????????????????????????????????????????? | | ????#????? ??????????????????????????????????????? | | ??????? ?????????????????????????????????????? | | ??????? ????????????????????????????????????? | | ???? ??? ???????????###########??????????????? | | ???????? ???????????# """" #??????????????? | | ????????? ???????????# """" #??????????????? | | ????????? ???????????# """" #??????????????? | | #????????# #???????????# #??????????????? | | #????????# #???????????# ss #??????????????? | | #?#?#????# #???????????# s #??????????????? | | #???# ???# #??????????## ## #####??????????????? | | #???# ?## ####???##### @ #??????????????????? | | #???# # ##??# d =!| #??????????????????? | | #???# ####d### = ##??????????????????? | | #?### #?#######???????????????????? | | #??#??# #???????????????????????????? | | #??#?# ########???????????????????????????? | | ?????## #??????????????????????????????????? | | #?????# ##?????????????????????????????????? | | ##????# # #???????????????????????????????? | | ##???# #???????????????????????????????? | | #???# #???????????????????????????????? | | #?#?## #??????????????????????????????? | | #??### #??????????????????????????????? | | ##?# #??????????????????????????????? | | # #?## ##??????????????????????????????? | | # #?# ##???????????????????????????????? | | # #?## #????????????????????????????????? | | # #??# ##????????????????????????????????? | | # #?# ##????????????????????????????????? | | # #### " ##???????????????????????????????? | | #####???????????????????????????? | | # ### " ?????????????????????????? | | # ### =% ????????????????????????? | | # [ ###### ????????????????????????? | | # #????????????????????????????? | +----------------------------------------------------+ Best States ------------- Heat Dissipation 25 Energy Generation 10 Energy Capacity 125 Matter Stores 269 Matter Capacity 300 Sight Range 16 Terrain Scan Range 16 Terrain Scan Density 10 Evasion (%) 55 Item Schematics ----------------- None Robot Schematics ------------------ None Fabricated ------------ Nothing Repaired ---------- Nothing Studied --------- None Alien Tech Used ----------------- None Achievements -------------- None Challenges ------------ None Game ------ Seed NullMagneticThrower Manual? 0 Play Time 00:10:51 Cumulative 28.8 hours Start 2026.04.23 @ 16:14:55 End 2026.04.23 @ 17:52:52 Sessions 2 Manual Loads 0 Difficulty Rogue Special Mode None Game No. 39 Rogue 39 Adventurer 0 Explorer 0 Win Type - Total 0 Types 0/0/0/0/0/0/0/0/0/0 Lore% 17 Gallery% 26 Achievement% 21 Wizard Run 0 Options --------- Layout 1 ASCII 0 Keyboard 1 Movement Vi Keybinds 0 Fullscreen 1 Font 36/Smallcaps Map View 55x38 Zoom Use 20% Tactical HUD 1 Map Filters NONE Filters NONE Steam 1 RUN: 4cc7004b-9fc8-4c22-9b07-efb1c4ee8455